fUST/lending_fUST_20260607
["ID","MTS","AMOUNT","RATE_DAILY","PERIOD"]
[424343935,1780769725000,201.18776168,0.00024393,120]
[424343934,1780769725000,201.18776168,0.00024393,120]
[424343933,1780769725000,201.18776168,0.00024393,120]
[424343937,1780769726000,201.18776168,0.00024393,120]
[424343936,1780769726000,201.18776168,0.00024393,120]
[424343939,1780769726000,201.18776168,0.00024393,120]
[424343938,1780769726000,201.18776168,0.00024393,120]
[424343941,1780769727000,201.18776168,0.00024393,120]
[424343940,1780769727000,201.18776168,0.00024393,120]
[424343942,1780769727000,201.18776168,0.00024393,120]
[424343945,1780769728000,201.18776168,0.00024393,120]
[424343944,1780769728000,201.18776168,0.00024393,120]
[424343943,1780769728000,201.18776168,0.00024393,120]
[424343946,1780769729000,201.18776168,0.00024393,120]
[424343949,1780770374000,311.8,0.00024431,31]
[424343951,1780770404000,-5000.0,0.00011643,2]
[424343955,1780770445000,-300.0,0.00011998,2]
[424343956,1780770445000,-297.8702147,0.00011998,2]
[424343957,1780770457000,-2.1297853,0.00011998,2]
[424343958,1780770510000,-357.0,0.00011999,2]
[424343959,1780770564000,-202.48813632,0.00012,2]
[424343965,1780770617000,-5000.0,0.0001287,2]
[424343990,1780770633000,-1891.00393743,0.00013,2]
[424343991,1780770633000,-4486.57554785,0.00013,2]
[424343988,1780770633000,-300.0,0.00012999,2]
[424343989,1780770633000,-300.0,0.00012999,2]
[424344013,1780770637000,-252.192,0.00013,2]
[424344061,1780770638000,-420.0,0.00014256,2]
[424344079,1780770638000,-267.7103083,0.00015994,2]
[424344077,1780770638000,-2255.3696701,0.00015994,2]
[424344080,1780770638000,-925.288832,0.00015994,2]
[424344065,1780770638000,-576.03550353,0.00014499,7]
[424344082,1780770638000,-300.0,0.00015994,2]
[424344067,1780770638000,-576.03550354,0.00015036,7]
[424344069,1780770638000,-168.809073,0.00015068,2]
[424344088,1780770638000,-500.2135633,0.00017175,2]
[424344073,1780770638000,-177.0,0.00015753,3]
[424344075,1780770638000,-651.0,0.00015944,2]
[424344086,1780770638000,-2871.7134062,0.00016915,2]
[424344085,1780770638000,-6122.5523731,0.00015994,2]
[424344090,1780770638000,-500.0,0.00017175,2]
[424344094,1780770638000,-180.8870772,0.00017175,2]
[424344063,1780770638000,-177.0,0.00014256,2]
[424344071,1780770638000,-255.0,0.00015634,2]
[424344059,1780770638000,-576.03550353,0.00014096,7]
[424344024,1780770638000,-5000.0,0.00013,2]
[424344048,1780770638000,-500.0,0.00013736,2]
[424344021,1780770638000,-4770.50782515,0.00013,2]
[424344096,1780770638000,-200.17499603,0.00017175,2]
[424344025,1780770638000,-5000.0,0.00013,2]
[424344028,1780770638000,-239.34645388,0.00013287,7]
[424344030,1780770638000,-576.03550353,0.00013694,7]
[424344032,1780770638000,-1000.0,0.00013714,2]
[424344034,1780770638000,-402.07298395,0.00013736,2]
[424344049,1780770638000,-220.87874622,0.00013736,2]
[424344035,1780770638000,-500.0,0.00013736,2]
[424344040,1780770638000,-500.0,0.00013736,2]
[424344042,1780770638000,-500.0,0.00013736,2]
[424344053,1780770638000,-500.0,0.00013736,2]
[424344057,1780770638000,-359.01968086,0.00014068,7]
[424344055,1780770638000,-3630.1826661,0.00013738,2]
[424344046,1780770638000,-500.0,0.00013736,2]
[424344044,1780770638000,-500.0,0.00013736,2]
[424344038,1780770638000,-500.0,0.00013736,2]
[424344100,1780770638000,-155.31012665,0.00017175,2]
[424344093,1780770638000,-500.0,0.00017175,2]
[424344102,1780770638000,-163.26879748,0.00017175,2]
[424344156,1780770638000,-171.28411191,0.00017999,2]
[424344159,1780770638000,-9105.68708798,0.00018,2]
[424344146,1780770638000,-833.46,0.0001799,3]
[424344144,1780770638000,-277.81,0.0001799,3]
[424344157,1780770638000,-361.23022588,0.00017999,2]
[424344140,1780770638000,-1111.25,0.0001799,3]
[424344148,1780770638000,-361.7741544,0.00017999,2]
[424344150,1780770638000,-189.88676728,0.00017999,2]
[424344204,1780770638000,-116894.31291202,0.00018,2]
[424344211,1780770638000,-178.00049997,0.00018013,2]
[424344206,1780770638000,-153.30256822,0.00018013,2]
[424344213,1780770638000,-179.56741458,0.00018013,2]
[424344209,1780770638000,-182.63763519,0.00018013,2]
[424344207,1780770638000,-407.59438723,0.00018013,2]
[424344215,1780770638000,-500.0,0.00018032,2]
[424344098,1780770638000,-180.61511294,0.00017175,2]
[424344217,1780770638000,-321.96737794,0.00018035,2]
[424344154,1780770638000,-171.80007845,0.00017999,2]
[424344152,1780770638000,-400.34999206,0.00017999,2]
[424344142,1780770638000,-555.63,0.0001799,3]
[424344125,1780770638000,-167.61193603,0.00017224,2]
[424344130,1780770638000,-152.0,0.00017645,7]
[424344106,1780770638000,-203.79719361,0.00017189,2]
[424344108,1780770638000,-250.0,0.00017203,2]
[424344110,1780770638000,-500.0,0.0001721,2]
[424344114,1780770638000,-251.99723478,0.00017211,2]
[424344116,1780770638000,-185.05457734,0.00017211,2]
[424344118,1780770638000,-182.52335049,0.00017211,2]
[424344120,1780770638000,-150.5066921,0.00017211,2]
[424344112,1780770638000,-160.98368897,0.00017211,2]
[424344104,1780770638000,-153.41611648,0.00017189,2]
[424344134,1780770638000,-625.871424,0.00017843,2]
[424344136,1780770638000,-3074.12450872,0.00017913,2]
[424344138,1780770638000,-156.0,0.00017945,3]
[424344126,1780770638000,-219.80269903,0.00017224,2]
[424344128,1780770638000,-500.0,0.00017484,2]
[424344132,1780770638000,-500.0,0.00017758,2]
[424344122,1780770638000,-179.54929754,0.00017224,2]
[424344272,1780770639000,-205.64843674,0.00018378,2]
[424344260,1780770639000,-500.0,0.00018378,2]
[424344264,1780770639000,-500.0,0.00018378,2]
[424344268,1780770639000,-500.0,0.00018378,2]
[424344266,1780770639000,-500.0,0.00018378,2]
[424344270,1780770639000,-277.71993064,0.00018378,2]
[424344281,1780770639000,-151.0,0.000185,2]
[424344275,1780770639000,-292.52238375,0.00018378,2]
[424344283,1780770639000,-159.14613754,0.00018547,2]
[424344285,1780770639000,-542.6612316,0.00018548,2]
[424344287,1780770639000,-206.30782551,0.00018548,2]
[424344291,1780770639000,-379.77353456,0.00018548,2]
[424344292,1780770639000,-600.52498809,0.00018548,2]
[424344278,1780770639000,-318241.55294745,0.00018495,2]
[424344276,1780770639000,-3074.12450871,0.00018447,2]
[424344263,1780770639000,-500.0,0.00018378,2]
[424344289,1780770639000,-206.57020369,0.00018548,2]
[424344258,1780770639000,-500.0,0.00018378,2]
[424344222,1780770639000,-370.10915468,0.00018035,2]
[424344255,1780770639000,-151.5,0.00018378,2]
[424344294,1780770639000,-465.93037996,0.00018548,2]
[424344219,1780770639000,-503.99446957,0.00018035,2]
[424344234,1780770639000,-338.20094995,0.00018049,2]
[424344232,1780770639000,-202.90503799,0.00018049,2]
[424344223,1780770639000,-365.04670098,0.00018035,2]
[424344236,1780770639000,-310.51532089,0.00018049,2]
[424344230,1780770639000,-3074.12450871,0.00018047,2]
[424344238,1780770639000,-439.60539806,0.00018049,2]
[424344253,1780770639000,-500.0,0.00018378,2]
[424344240,1780770639000,-3074.12450871,0.0001818,2]
[424344228,1780770639000,-301.01338419,0.00018035,2]
[424344241,1780770639000,-150.0,0.00018193,7]
[424344245,1780770639000,-500.0,0.00018306,2]
[424344243,1780770639000,-231.62444497,0.00018193,7]
[424344247,1780770639000,-3074.12450871,0.00018314,2]
[424344249,1780770639000,-500.0,0.00018378,2]
[424344251,1780770639000,-151.5,0.00018378,2]
[424344257,1780770639000,-500.0,0.00018378,2]
[424344226,1780770639000,-181.11010038,0.00018035,2]
[424344296,1780770639000,-343.60015689,0.00018548,2]
[424344323,1780770639000,-482.95106691,0.00018585,2]
[424344300,1780770639000,-541.84533883,0.00018548,2]
[424344347,1780770639000,-507.30142492,0.00018599,2]
[424344345,1780770639000,-405.81007597,0.00018599,2]
[424344351,1780770639000,-249.24370751,0.00018599,2]
[424344353,1780770639000,-659.40809709,0.00018599,2]
[424344349,1780770639000,-465.77298134,0.00018599,2]
[424344355,1780770639000,-151.0,0.000186,2]
[424344358,1780770639000,-707.455704,0.00018638,2]
[424344343,1780770639000,-502.83580809,0.00018599,2]
[424344364,1780770639000,-151.0,0.00018638,2]
[424344362,1780770639000,-707.455704,0.00018638,2]
[424344366,1780770639000,-151.0,0.00018638,2]
[424344367,1780770639000,-151.0,0.00018638,2]
[424344371,1780770639000,-151.0,0.00018638,2]
[424344369,1780770639000,-151.0,0.00018638,2]
[424344376,1780770639000,-3727.21370763,0.00018638,2]
[424344373,1780770639000,-960922.48134601,0.00018638,2]
[424344360,1780770639000,-707.455704,0.00018638,2]
[424344327,1780770639000,-555.16373202,0.00018585,2]
[424344357,1780770639000,-707.455704,0.00018638,2]
[424344325,1780770639000,-755.99170435,0.00018585,2]
[424344321,1780770639000,-500.0,0.0001858,2]
[424344309,1780770639000,-212.93612096,0.00018562,2]
[424344304,1780770639000,-306.60513644,0.00018562,2]
[424344307,1780770639000,-460.24834945,0.00018562,2]
[424344305,1780770639000,-249.31478558,0.00018562,2]
[424344302,1780770639000,-158.63897907,0.00018548,2]
[424344313,1780770639000,-365.27527037,0.00018562,2]
[424344315,1780770639000,-210.76761759,0.00018562,2]
[424344317,1780770639000,-359.13482916,0.00018562,2]
[424344311,1780770639000,-611.39158084,0.00018562,2]
[424344298,1780770639000,-342.56822383,0.00018548,2]
[424344329,1780770639000,-547.57005147,0.00018585,2]
[424344331,1780770639000,-362.22020075,0.00018585,2]
[424344333,1780770639000,-451.52007629,0.00018585,2]
[424344335,1780770639000,-625.871424,0.00018594,2]
[424344337,1780770639000,-538.64789262,0.00018599,2]
[424344341,1780770639000,-489.63022357,0.00018599,2]
[424344339,1780770639000,-163.46673304,0.00018599,2]
[424344319,1780770639000,-190.78116585,0.00018563,2]
[424344488,1780770640000,-585.243046,0.00018638,2]
[424344484,1780770640000,-2342.42276885,0.00018638,2]
[424344486,1780770640000,-1634.63594125,0.00018638,2]
[424344481,1780770640000,-868.36304219,0.00018638,2]
[424344491,1780770640000,-68152.72147245,0.00018638,2]
[424344793,1780770643000,-2119.25919702,0.00018638,2]
[424344788,1780770643000,-200.18120051,0.00018638,2]
[424344802,1780770646000,-500.0,0.00013735,2]
[424344803,1780770646000,-3152.39590425,0.00018638,2]
[424344806,1780770714000,-5000.0,0.00013462,2]
[424344807,1780770731000,-5000.0,0.00013598,2]
[424344808,1780770750000,-500.0,0.00013735,2]
[424344809,1780770767000,-500.0,0.00013735,2]
[424344811,1780770967000,248.87519191,0.00024455,120]
[424344814,1780771283000,-5000.0,0.00013026,2]
[424344816,1780771337000,-500.0,0.0001329,2]
[424344818,1780771390000,-5000.0,0.00013026,2]
[424344820,1780771443000,-500.0,0.00013289,2]
[424344821,1780771497000,-595.93959328,0.00013288,2]
[424344822,1780771550000,-5000.0,0.00013155,2]
[424344823,1780771643000,-778.46005232,0.00013056,2]
[424344824,1780771645000,-377.93256074,0.00013056,2]
[424344826,1780771752000,-151.0,0.00012925,2]
[424344825,1780771752000,-152.0,0.00012925,2]
[424344841,1780771832000,-4501.31335797,0.00012668,2]
[424344840,1780771832000,-159.4920842,0.00012171,2]
[424344839,1780771832000,-4917.14455783,0.0001208,2]
[424344838,1780771832000,-433.45811007,0.0001208,2]
[424344877,1780771838000,-500.0,0.00013286,2]
[424344876,1780771838000,-500.0,0.00013286,2]
[424344873,1780771838000,-500.0,0.00013286,2]
[424344875,1780771838000,-500.0,0.00013286,2]
[424344871,1780771838000,-500.0,0.00013286,2]
[424344870,1780771838000,-500.0,0.00013286,2]
[424344869,1780771838000,-500.0,0.00013286,2]
[424344872,1780771838000,-550.2337406,0.00013286,2]
[424344881,1780771838000,-500.0,0.00013286,2]
[424344880,1780771838000,-500.0,0.00013286,2]
[424344882,1780771838000,-500.0,0.00013286,2]
[424344883,1780771838000,-500.0,0.00013286,2]
[424344874,1780771838000,-500.0,0.00013286,2]
[424344885,1780771838000,-500.0,0.00013286,2]
[424344884,1780771838000,-500.0,0.00013286,2]
[424344887,1780771838000,-500.0,0.00013286,2]
[424344890,1780771838000,-500.0,0.00013286,2]
[424344886,1780771838000,-500.0,0.00013286,2]
[424344888,1780771838000,-500.0,0.00013286,2]
[424344889,1780771838000,-500.0,0.00013286,2]
[424344891,1780771838000,-500.0,0.00013286,2]
[424344867,1780771838000,-500.0,0.00013286,2]
[424344862,1780771838000,-500.0,0.00013286,2]
[424344878,1780771838000,-500.0,0.00013286,2]
[424344892,1780771838000,-500.0,0.00013286,2]
[424344847,1780771838000,-498.68664203,0.00012668,2]
[424344854,1780771838000,-500.0,0.00013286,2]
[424344849,1780771838000,-300.0,0.00012924,2]
[424344850,1780771838000,-300.0,0.00012924,2]
[424344851,1780771838000,-2949.4911388,0.00012925,2]
[424344852,1780771838000,-4530.34310998,0.00013186,2]
[424344848,1780771838000,-5000.0,0.00012796,2]
[424344853,1780771838000,-500.0,0.00013286,2]
[424344855,1780771838000,-500.0,0.00013286,2]
[424344858,1780771838000,-370.14310102,0.00013286,2]
[424344859,1780771838000,-500.0,0.00013286,2]
[424344856,1780771838000,-500.0,0.00013286,2]
[424344863,1780771838000,-500.0,0.00013286,2]
[424344857,1780771838000,-500.0,0.00013286,2]
[424344860,1780771838000,-500.0,0.00013286,2]
[424344861,1780771838000,-295.40783004,0.00013286,2]
[424344864,1780771838000,-500.0,0.00013286,2]
[424344865,1780771838000,-500.0,0.00013286,2]
[424344866,1780771838000,-500.0,0.00013286,2]
[424344868,1780771838000,-500.0,0.00013286,2]
[424344879,1780771838000,-500.0,0.00013286,2]
[424344893,1780771838000,-500.0,0.00013286,2]
[424344933,1780771838000,-462.644416,0.00014341,2]
[424344903,1780771838000,-500.0,0.00013286,2]
[424344920,1780771838000,-500.0,0.00013698,2]
[424344923,1780771838000,-500.0,0.00013698,2]
[424344921,1780771838000,-500.0,0.00013698,2]
[424344919,1780771838000,-500.0,0.00013698,2]
[424344930,1780771838000,-166.1588,0.00013835,2]
[424344926,1780771838000,-500.0,0.00013698,2]
[424344924,1780771838000,-500.0,0.00013698,2]
[424344927,1780771838000,-500.0,0.00013698,2]
[424344925,1780771838000,-500.0,0.00013698,2]
[424344929,1780771838000,-500.0,0.00013698,2]
[424344922,1780771838000,-500.0,0.00013698,2]
[424344931,1780771838000,-381.0,0.00014174,2]
[424344940,1780771838000,-909.741,0.0001632,2]
[424344936,1780771838000,-172.0,0.00015726,3]
[424344937,1780771838000,-500.0,0.00015744,2]
[424344941,1780771838000,-325.88496169,0.00016536,2]
[424344934,1780771838000,-8836.4629976,0.00015181,2]
[424344939,1780771838000,-1000.0,0.00015878,2]
[424344932,1780771838000,-300.0,0.00014174,2]
[424344904,1780771838000,-500.0,0.00013697,2]
[424344938,1780771838000,-636.46,0.00015744,2]
[424344928,1780771838000,-500.0,0.00013698,2]
[424344935,1780771838000,-500.0,0.00015642,2]
[424344915,1780771838000,-500.35104911,0.00013698,2]
[424344918,1780771838000,-500.0,0.00013698,2]
[424344896,1780771838000,-500.0,0.00013286,2]
[424344898,1780771838000,-500.0,0.00013286,2]
[424344902,1780771838000,-200.0,0.00013286,2]
[424344897,1780771838000,-500.0,0.00013286,2]
[424344895,1780771838000,-500.0,0.00013286,2]
[424344900,1780771838000,-500.0,0.00013286,2]
[424344899,1780771838000,-500.0,0.00013286,2]
[424344894,1780771838000,-500.0,0.00013286,2]
[424344905,1780771838000,-423.74748508,0.00013697,2]
[424344901,1780771838000,-500.0,0.00013286,2]
[424344907,1780771838000,-500.0,0.00013697,2]
[424344916,1780771838000,-636.46,0.00013698,2]
[424344908,1780771838000,-500.0,0.00013697,2]
[424344914,1780771838000,-500.0,0.00013698,2]
[424344917,1780771838000,-500.0,0.00013698,2]
[424344911,1780771838000,-500.0,0.00013697,2]
[424344913,1780771838000,-450.0,0.00013697,2]
[424344912,1780771838000,-417.15771529,0.00013697,2]
[424344910,1780771838000,-500.0,0.00013697,2]
[424344906,1780771838000,-500.0,0.00013697,2]
[424344909,1780771838000,-500.0,0.00013697,2]
[424344982,1780771839000,-636.46,0.00017999,2]
[424344984,1780771839000,-636.46,0.00017999,2]
[424344992,1780771839000,-199.8314639,0.00018058,2]
[424344985,1780771839000,-500.0,0.00018041,2]
[424344983,1780771839000,-636.46,0.00017999,2]
[424344979,1780771839000,-636.46,0.00017999,2]
[424344976,1780771839000,-500.0,0.00017999,2]
[424344973,1780771839000,-500.0,0.00017999,2]
[424344978,1780771839000,-500.0,0.00017999,2]
[424344977,1780771839000,-500.0,0.00017999,2]
[424344989,1780771839000,-416.41380823,0.00018058,2]
[424344972,1780771839000,-500.0,0.00017998,2]
[424344974,1780771839000,-500.0,0.00017999,2]
[424344986,1780771839000,-636.46,0.00018041,2]
[424344996,1780771839000,-357.82102917,0.00018058,2]
[424344991,1780771839000,-371.34324654,0.00018058,2]
[424344993,1780771839000,-150.18641607,0.00018058,2]
[424344990,1780771839000,-361.93434995,0.00018058,2]
[424344988,1780771839000,-451.76231545,0.00018058,2]
[424344995,1780771839000,-381.9777989,0.00018058,2]
[424345006,1780771839000,-369.58577456,0.00018065,2]
[424345005,1780771839000,-353.02597696,0.00018065,2]
[424344994,1780771839000,-342.80097513,0.00018058,2]
[424344998,1780771839000,-360.4707468,0.00018058,2]
[424344999,1780771839000,-367.92616373,0.00018058,2]
[424345001,1780771839000,-360.48585399,0.00018058,2]
[424345000,1780771839000,-323.65942744,0.00018058,2]
[424344975,1780771839000,-500.0,0.00017999,2]
[424344987,1780771839000,-350.49393126,0.00018049,2]
[424344981,1780771839000,-636.46,0.00017999,2]
[424344946,1780771839000,-225.88115772,0.00017233,2]
[424344971,1780771839000,-500.0,0.00017998,2]
[424344943,1780771839000,-4530.34310998,0.00017002,2]
[424344942,1780771839000,-279.84420518,0.00016842,2]
[424344944,1780771839000,-172.03241,0.00017078,2]
[424344945,1780771839000,-175.24696563,0.00017224,2]
[424344948,1780771839000,-208.20690411,0.00017233,2]
[424344951,1780771839000,-155.75426926,0.00017233,2]
[424344947,1780771839000,-170.94934591,0.00017233,2]
[424345003,1780771839000,-391.37503413,0.00018065,2]
[424344950,1780771839000,-174.37568177,0.00017233,2]
[424344955,1780771839000,-190.98889945,0.00017233,2]
[424344949,1780771839000,-180.96717497,0.00017233,2]
[424344952,1780771839000,-161.01358106,0.00017233,2]
[424344954,1780771839000,-171.40048756,0.00017233,2]
[424344953,1780771839000,-185.67162327,0.00017233,2]
[424344956,1780771839000,-183.96308186,0.00017233,2]
[424344958,1780771839000,-195.68751706,0.00017239,2]
[424344962,1780771839000,-164.50644037,0.00017239,2]
[424344961,1780771839000,-184.79288728,0.00017239,2]
[424344960,1780771839000,-176.51298848,0.00017239,2]
[424344959,1780771839000,-205.88319451,0.00017239,2]
[424344963,1780771839000,-202.19187474,0.00017239,2]
[424344957,1780771839000,-180.242927,0.00017233,2]
[424344964,1780771839000,-250.24208455,0.00017277,2]
[424344968,1780771839000,-500.0,0.00017998,2]
[424344966,1780771839000,-636.46,0.00017912,2]
[424344965,1780771839000,-500.0,0.00017912,2]
[424344967,1780771839000,-500.0,0.00017998,2]
[424344970,1780771839000,-231.24142281,0.00017998,2]
[424344969,1780771839000,-500.0,0.00017998,2]
[424344980,1780771839000,-636.46,0.00017999,2]
[424345004,1780771839000,-411.76638903,0.00018065,2]
[424344997,1780771839000,-162.7312107,0.00018058,2]
[424345007,1780771839000,-329.01288074,0.00018065,2]
[424345040,1780771839000,-636.46,0.00018494,2]
[424345039,1780771839000,-636.46,0.00018494,2]
[424345045,1780771839000,-500.0,0.00018527,2]
[424345043,1780771839000,-636.52571783,0.00018494,2]
[424345041,1780771839000,-636.46,0.00018494,2]
[424345042,1780771839000,-636.46,0.00018494,2]
[424345048,1780771839000,-500.0,0.00018537,2]
[424345058,1780771839000,-500.0,0.00018537,2]
[424345059,1780771839000,-500.0,0.00018537,2]
[424345061,1780771839000,-525.74089689,0.00018599,2]
[424345060,1780771839000,-253.23,0.00018537,2]
[424345050,1780771839000,-639.08644557,0.00018537,2]
[424345051,1780771839000,-500.0,0.00018537,2]
[424345056,1780771839000,-549.44,0.00018537,2]
[424345047,1780771839000,-500.0,0.00018537,2]
[424345049,1780771839000,-500.0,0.00018537,2]
[424345053,1780771839000,-500.0,0.00018537,2]
[424345055,1780771839000,-500.0,0.00018537,2]
[424345052,1780771839000,-500.0,0.00018537,2]
[424345063,1780771839000,-542.90152492,0.00018609,2]
[424345062,1780771839000,-624.62071234,0.00018609,2]
[424345071,1780771839000,-704.89447779,0.00018609,2]
[424345065,1780771839000,-557.01486982,0.00018609,2]
[424345064,1780771839000,-181.11010037,0.00018609,2]
[424345067,1780771839000,-300.37283214,0.00018609,2]
[424345069,1780771839000,-572.96669835,0.00018609,2]
[424345068,1780771839000,-514.20146269,0.00018609,2]
[424345002,1780771839000,-221.53456183,0.00018065,2]
[424345066,1780771839000,-399.6629278,0.00018609,2]
[424345046,1780771839000,-639.0,0.00018527,2]
[424345036,1780771839000,-636.46,0.00018494,2]
[424345070,1780771839000,-202.90503798,0.00018609,2]
[424345044,1780771839000,-500.0,0.00018527,2]
[424345038,1780771839000,-636.46,0.00018494,2]
[424345010,1780771839000,-503.71956932,0.00018161,2]
[424345011,1780771839000,-622.76845463,0.00018377,7]
[424345012,1780771839000,-151.5,0.00018378,2]
[424345016,1780771839000,-500.0,0.00018378,2]
[424345019,1780771839000,-151.5,0.00018378,2]
[424345020,1780771839000,-151.5,0.00018378,2]
[424345018,1780771839000,-151.5,0.00018378,2]
[424345014,1780771839000,-151.5,0.00018378,2]
[424345015,1780771839000,-187.69323223,0.00018378,2]
[424345008,1780771839000,-404.38374948,0.00018065,2]
[424345017,1780771839000,-349.70006729,0.00018378,2]
[424345013,1780771839000,-164.02470756,0.00018378,2]
[424345022,1780771839000,-151.5,0.00018378,2]
[424345009,1780771839000,-322.02716212,0.00018086,2]
[424345033,1780771839000,-636.46,0.00018494,2]
[424345032,1780771839000,-636.46,0.00018494,2]
[424345037,1780771839000,-636.46,0.00018494,2]
[424345034,1780771839000,-636.46,0.00018494,2]
[424345031,1780771839000,-636.46,0.00018494,2]
[424345029,1780771839000,-434.6211677,0.00018494,2]
[424345026,1780771839000,-500.0,0.00018465,2]
[424345035,1780771839000,-636.46,0.00018494,2]
[424345028,1780771839000,-500.0,0.00018494,2]
[424345027,1780771839000,-183.0,0.00018466,3]
[424345025,1780771839000,-426.7301963,0.00018398,2]
[424345023,1780771839000,-215.04220334,0.00018378,2]
[424345024,1780771839000,-243.48836755,0.00018381,2]
[424345030,1780771839000,-636.46,0.00018494,2]
[424345021,1780771839000,-151.5,0.00018378,2]
[424345104,1780771840000,-151.0,0.000188,2]
[424345117,1780771840000,-214.16806604,0.00018928,2]
[424345120,1780771840000,-305.32408739,0.00018951,2]
[424345119,1780771840000,-412.12904453,0.00018951,2]
[424345118,1780771840000,-197.38306847,0.00018951,2]
[424345110,1780771840000,-413.14040738,0.00018913,2]
[424345114,1780771840000,-425.87224193,0.00018928,2]
[424345112,1780771840000,-236.15784833,0.00018914,2]
[424345109,1780771840000,-412.61565103,0.00018913,2]
[424345111,1780771840000,-288.39658361,0.00018913,2]
[424345107,1780771840000,-187.74509805,0.00018913,2]
[424345113,1780771840000,-212.04522224,0.00018928,2]
[424345127,1780771840000,-156.55395829,0.00018966,2]
[424345123,1780771840000,-388.53298295,0.00018951,2]
[424345122,1780771840000,-432.65742735,0.00018951,2]
[424345124,1780771840000,-428.33613209,0.00018951,2]
[424345125,1780771840000,-488.47,0.00018965,3]
[424345121,1780771840000,-441.46566806,0.00018951,2]
[424345128,1780771840000,-158.84648094,0.00018966,2]
[424345129,1780771840000,-700.98786252,0.00018966,2]
[424345140,1780771840000,-763.9555978,0.00018975,2]
[424345130,1780771840000,-1182.77,0.00018972,3]
[424345138,1780771840000,-599.4943917,0.00018975,2]
[424345136,1780771840000,-742.68649309,0.00018975,2]
[424345132,1780771840000,-162.81,0.00018972,3]
[424345135,1780771840000,-644.05432424,0.00018975,2]
[424345108,1780771840000,-156.53972117,0.00018913,2]
[424345131,1780771840000,-325.62,0.00018972,3]
[424345126,1780771840000,-326.93346608,0.00018966,2]
[424345106,1780771840000,-318.29227507,0.00018913,2]
[424345097,1780771840000,-162.38071901,0.00018771,2]
[424345115,1780771840000,-421.53523518,0.00018928,2]
[424345133,1780771840000,-832.82761645,0.00018975,2]
[424345072,1780771840000,-536.73154375,0.00018609,2]
[424345073,1780771840000,-325.46242139,0.00018609,2]
[424345085,1780771840000,-617.64958354,0.00018615,2]
[424345087,1780771840000,-189.66463657,0.00018615,2]
[424345086,1780771840000,-529.53896544,0.00018615,2]
[424345088,1780771840000,-554.37866184,0.00018615,2]
[424345077,1780771840000,-551.88924559,0.00018609,2]
[424345081,1780771840000,-540.72878099,0.00018609,2]
[424345082,1780771840000,-293.07026537,0.00018609,2]
[424345080,1780771840000,-485.48914116,0.00018609,2]
[424345084,1780771840000,-587.06255119,0.00018615,2]
[424345083,1780771840000,-443.06912365,0.00018615,2]
[424345116,1780771840000,-414.81834356,0.00018928,2]
[424345090,1780771840000,-493.51932111,0.00018615,2]
[424345079,1780771840000,-179.56741458,0.00018609,2]
[424345100,1780771840000,-151.0,0.000188,2]
[424345091,1780771840000,-606.57562421,0.00018615,2]
[424345101,1780771840000,-151.0,0.000188,2]
[424345093,1780771840000,-483.04074318,0.00018637,2]
[424345102,1780771840000,-151.0,0.000188,2]
[424345096,1780771840000,-167.80631322,0.00018771,2]
[424345094,1780771840000,-329.19962662,0.00018652,2]
[424345092,1780771840000,-166.16247167,0.00018615,2]
[424345103,1780771840000,-151.0,0.000188,2]
[424345098,1780771840000,-151.0,0.00018771,2]
[424345099,1780771840000,-500.0,0.00018771,2]
[424345105,1780771840000,-154.3,0.00018896,2]
[424345074,1780771840000,-540.7061202,0.00018609,2]
[424345134,1780771840000,-723.86869989,0.00018975,2]
[424345095,1780771840000,-151.0,0.00018771,2]